bitfinex-derivatives/quotes_ETHF0:USTF0_20250602
["timestamp","ask_amount","ask_price","bid_price","bid_amount"]
[1748827796304,22.55490842,2532.9,2532.8,3.77849789]
[1748827796710,22.55492219,2532.9,2532.8,3.77849789]
[1748827797009,22.55493041,2532.9,2532.8,3.77849789]
[1748827797211,21.39540792,2532.9,2532.8,3.77849789]
[1748827797405,22.55501497,2532.9,2532.8,3.77849789]
[1748827797710,22.55501452,2532.9,2532.8,3.27849789]
[1748827797902,22.35252694,2532.9,2532.8,3.27849789]
[1748827798102,22.55501428,2532.9,2532.8,3.27849789]
[1748827798802,22.55500755,2532.9,2532.8,3.27849789]
[1748827799011,22.35252694,2532.9,2532.8,3.27849789]
[1748827799510,22.35252694,2532.9,2532.8,0.07069789]
[1748827799708,21.3953986,2532.9,2532.8,3.27849789]
[1748827799910,31.13876672,2532.9,2531.6,1.2867]
[1748827800111,0.78932,2532.6,2532.5,3.2078]
[1748827800310,4.13906168,2532.6,2532.5,3.2078]
[1748827800501,2.15138672,2532.6,2532.5,3.2078]
[1748827800706,1.94890812,2532.6,2532.5,3.2078]
[1748827801016,0.78943,2532.3,2532.1,2.07615]
[1748827801214,2.36041602,2532.5,2532.2,1.2867]
[1748827801414,0.78941,2532.3,2532.2,1.2867]
[1748827801709,5.53243453,2532.3,2531.9,3.2078]
[1748827801915,0.7895,2532.0,2531.9,3.2078]
[1748827802111,0.7896,2531.7,2531.6,0.5]
[1748827802811,1.94715537,2531.7,2531.6,0.5]
[1748827803216,1.15755537,2531.7,2531.6,0.5]
[1748827803722,1.15755537,2531.7,2531.6,2.57553]
[1748827804021,1.15755537,2531.7,2531.6,1.7859]
[1748827804214,1.94715537,2531.7,2531.6,1.7859]
[1748827805514,0.7896,2531.7,2531.6,1.7859]
[1748827806007,1.94539006,2531.7,2531.6,0.5]
[1748827807210,1.94479787,2531.7,2531.6,0.5]
[1748827807514,20.79279787,2531.7,2531.6,0.5]
[1748827807710,21.46059787,2531.7,2531.6,0.5]
[1748827811520,20.3054,2531.7,2531.6,0.5]
[1748827811717,21.45912088,2531.7,2531.6,0.5]
[1748827812526,0.78966,2531.5,2531.4,3.2078]
[1748827816920,0.78966,2531.5,2531.4,3.7078]
[1748827819629,0.78966,2531.5,2531.4,3.77849789]
[1748827822129,0.78966,2531.5,2531.4,0.57069789]
[1748827822431,1.94238779,2531.5,2531.4,0.57069789]
[1748827822730,1.97424,2531.4,2531.0,1.2573]
[1748827823023,1.97424,2531.4,2528.9,11.68551594]
[1748827823024,0.79009,2530.2,2529.9,4.296]
[1748827823231,0.7901,2530.1,2530.0,0.6686]
[1748827823524,0.7901,2530.1,2530.0,5.1698]
[1748827823734,0.7901,2530.1,2530.0,10.1698]
[1748827824423,0.9877,2530.1,2530.0,10.1698]
[1748827824622,0.9877,2530.1,2530.0,10.6698]
[1748827825427,0.9877,2530.1,2530.0,5.6698]
[1748827830027,0.98769,2530.1,2530.0,5.6698]
[1748827834432,0.98769,2530.1,2530.0,0.5]
[1748827834923,0.98769,2530.1,2530.0,0.57069789]
[1748827835121,5.50569,2530.1,2530.0,0.57069789]
[1748827836032,6.65938927,2530.1,2530.0,0.57069789]
[1748827837326,6.65920375,2530.1,2530.0,0.57069789]
[1748827838326,6.65911191,2530.1,2530.0,0.57069789]
[1748827840235,0.79025,2529.6,2529.5,2.7178]
[1748827840632,0.79041,2529.1,2529.0,3.2078]
[1748827841039,0.79041,2529.1,2527.3,3.92448163]
[1748827841040,18.666,2529.1,2527.3,3.92448163]
[1748827841238,0.79061,2528.5,2528.2,0.79067]
[1748827841540,0.00592417,2528.7,2528.6,0.79056]
[1748827841734,0.00592417,2528.7,2528.6,1.3034]
[1748827842042,0.00592417,2528.7,2528.6,1.8034]
[1748827842438,0.79645417,2528.7,2528.6,1.8034]
[1748827842638,0.20362417,2528.7,2528.6,1.8034]
[1748827843037,0.99415417,2528.7,2528.6,1.8034]
[1748827843436,0.99415417,2528.7,2528.6,0.5]
[1748827844134,0.79068,2528.2,2528.1,3.8893]
[1748827844535,0.79068,2528.3,2528.1,3.8893]
[1748827844739,0.79068,2528.3,2528.2,1.3278]
[1748827844935,18.769,2528.6,2528.2,1.3278]
[1748827845243,0.79067,2528.3,2528.2,1.3278]
[1748827845637,0.79067,2528.3,2528.2,1.8278]
[1748827846236,18.76,2528.6,2528.2,2.61849]
[1748827846540,0.79064,2528.4,2528.3,1.3278]
[1748827846939,0.79062,2528.5,2528.3,1.3278]
[1748827847239,0.79064,2528.4,2528.3,1.3278]
[1748827848439,0.20362417,2528.7,2528.3,1.3278]
[1748827848742,19.53759,2528.6,2528.4,1.44052]
[1748827848939,0.79059,2528.6,2528.5,1.3339]
[1748827849336,0.99418417,2528.7,2528.5,2.1245]
[1748827849539,0.20362417,2528.7,2528.5,1.3339]
[1748827849850,0.20362417,2528.7,2528.6,3.99837]
[1748827850147,0.79057,2528.6,2528.5,1.3339]
[1748827850938,0.79067,2528.3,2528.2,0.57069789]
[1748827851542,0.79067,2528.3,2528.2,1.22809789]
[1748827854241,0.79065,2528.4,2528.2,1.22809789]
[1748827854447,0.79063,2528.5,2528.3,2.07825]
[1748827855252,0.79067,2528.3,2528.2,42.02809789]
[1748827855447,0.79067,2528.3,2528.2,0.57069789]
[1748827856338,3.31174215,2528.3,2528.2,0.57069789]
[1748827856643,22.08274215,2528.3,2528.2,0.57069789]
[1748827857047,0.79085,2527.7,2527.6,1.3026]
[1748827857744,1.3712,2527.9,2527.4,42.1266]
[1748827858051,0.79091,2527.6,2527.4,42.1266]
[1748827860751,0.79085,2527.7,2527.6,1.2542]
[1748827862053,3.2078,2527.9,2527.8,0.79082]
[1748827862648,0.79077,2528.0,2527.8,0.79082]
[1748827862848,0.79068,2528.3,2527.9,1.316]
[1748827863048,4.4938,2528.6,2528.1,0.7907]
[1748827863354,0.79067,2528.3,2528.2,0.07069789]
[1748827864351,3.99838,2528.6,2528.2,0.07069789]
[1748827864547,0.20362417,2528.7,2528.2,0.07069789]
[1748827864753,0.99417417,2528.7,2528.5,0.79059]
[1748827864953,0.20362417,2528.7,2528.6,1.47077]
[1748827865456,0.20362417,2528.7,2528.6,4.67857]
[1748827865652,0.20362417,2528.7,2528.6,9.67857]
[1748827867154,0.20362417,2528.7,2528.6,3.888]
[1748827867561,0.99416417,2528.7,2528.6,3.888]
[1748827867961,0.20362417,2528.7,2528.6,4.67857]
[1748827868160,0.99416417,2528.7,2528.6,3.2078]
[1748827868664,2.14819711,2528.7,2528.6,3.2078]
[1748827868857,1.35765711,2528.7,2528.6,3.99837]
[1748827869360,0.20362417,2528.7,2528.6,3.99837]
[1748827870060,0.20362417,2528.7,2528.6,8.99837]
[1748827870454,0.20362417,2528.7,2528.6,49.79837]
[1748827871652,0.20362417,2528.7,2528.6,44.79837]
[1748827872863,0.20362417,2528.7,2528.6,45.29837]
[1748827877967,0.20362417,2528.7,2528.6,4.49837]
[1748827878565,0.99416417,2528.7,2528.6,3.7078]
[1748827879067,0.79064,2528.4,2528.3,3.2078]
[1748827880462,5.79064,2528.4,2528.3,3.2078]
[1748827880765,0.79075,2528.1,2528.0,3.2078]
[1748827881066,0.98845,2528.1,2528.0,3.2078]
[1748827881463,0.1977,2528.1,2528.0,3.2078]
[1748827881663,1.4575,2528.1,2528.0,3.2078]
[1748827882058,1.4575,2528.1,2527.6,3.2078]
[1748827882059,2.24823,2528.1,2527.6,3.2078]
[1748827882263,1.47357,2528.0,2527.6,3.2078]
[1748827882460,0.6828,2528.0,2527.6,3.7078]
[1748827882864,0.6828,2528.0,2527.6,4.9931]
[1748827883074,0.6828,2528.0,2527.7,1.2853]
[1748827883265,0.6828,2528.0,2527.9,0.79079]
[1748827883878,0.1977,2528.1,2528.0,0.79076]
[1748827884474,1.4828,2528.1,2528.0,0.79076]
[1748827884991,0.1977,2528.1,2528.0,0.79076]
[1748827885175,0.1977,2528.1,2528.0,2.69056]
[1748827885991,0.00592417,2528.7,2528.2,1.9767]
[1748827886285,0.00592417,2528.7,2528.6,3.99837]
[1748827886680,0.00592417,2528.7,2528.6,4.06906789]
[1748827888881,0.00592417,2528.7,2528.6,44.86906789]
[1748827889174,1.2546,2529.3,2528.6,44.86906789]
[1748827889175,1.2546,2529.3,2529.2,0.79039]
[1748827889381,0.6468,2529.6,2529.5,0.79029]
[1748827889984,1.9299,2529.6,2529.5,0.79029]
[1748827891878,0.1969,2529.7,2529.6,0.79026]
[1748827892483,1.48,2529.7,2529.6,0.79026]
[1748827893592,0.1969,2529.7,2529.6,0.79026]
[1748827893884,0.1969,2529.7,2529.6,2.07816]
[1748827895685,1.9776,2530.1,2529.7,0.79023]
[1748827895887,1.9776,2530.1,2530.0,0.79014]
[1748827896792,1.9776,2530.1,2529.7,0.79022]
[1748827896793,6.9776,2530.1,2529.7,0.79022]
[1748827897092,0.79018,2529.9,2529.8,0.79019]
[1748827897484,7.11308,2529.9,2529.8,0.79019]
[1748827897686,6.3229,2529.9,2529.8,0.79019]
[1748827897883,1.3229,2529.9,2529.8,0.79019]
[1748827898690,1.3229,2529.9,2529.8,0.7902]
[1748827899186,0.79023,2529.7,2529.5,0.86096789]
[1748827899383,4.236,2530.0,2529.5,0.86098789]
[1748827899384,1.9014,2529.6,2529.5,0.86098789]
[1748827900781,3.8418,2530.1,2530.0,0.79014]
[1748827901192,22.4938,2530.1,2530.0,0.79014]
[1748827901696,3.8418,2530.1,2530.0,0.79014]
[1748827901990,0.634,2530.1,2530.0,0.79014]
[1748827902189,0.634,2530.1,2529.6,3.2078]
[1748827902391,1.3804,2530.0,2529.8,0.79019]
[1748827902780,1.3804,2530.0,2529.8,1.29019]
[1748827902979,2.17054,2530.0,2529.8,1.29019]
[1748827903184,1.3804,2530.0,2529.8,0.5]
[1748827903398,0.79017,2529.9,2529.8,0.5]
[1748827903691,1.3804,2530.0,2529.8,0.5]
[1748827903887,1.3804,2530.0,2529.9,0.79017]
[1748827904088,2.17054,2530.0,2529.8,1.29018]
[1748827904283,1.3804,2530.0,2529.9,0.79017]
[1748827904988,1.3804,2530.0,2529.8,0.5]
[1748827905193,0.79017,2529.9,2529.8,0.5]
[1748827905693,2.17056,2530.0,2529.8,1.2902]
[1748827906193,1.3804,2530.0,2529.9,0.79017]
[1748827907995,0.634,2530.1,2530.0,0.79014]
[1748827908293,0.6519,2530.2,2530.1,0.7901]
[1748827911592,0.00592417,2530.3,2530.2,0.79007]
[1748827913295,1.1603065,2530.3,2530.2,0.79007]
[1748827913495,2.46141414,2530.3,2530.2,0.79007]
[1748827913893,3.25145414,2530.3,2530.1,0.79009]
[1748827914093,1.30702417,2530.3,2529.9,4.06865789]
[1748827914289,1.15544282,2530.2,2529.9,0.07069789]
[1748827914594,0.79014,2530.0,2529.9,0.07069789]
[1748827914793,1.15540614,2530.0,2529.9,0.07069789]
[1748827914998,1.15540614,2530.0,2529.9,0.86086789]
[1748827916399,1.2703,2530.1,2530.0,0.79014]
[1748827916594,2.6283632,2530.1,2530.0,0.79014]
[1748827916995,2.42745821,2530.1,2530.0,0.79014]
[1748827917396,2.62856485,2530.1,2530.0,0.79014]
[1748827917695,2.6292849,2530.1,2530.0,0.79014]
[1748827917901,2.6292938,2530.1,2530.0,1.29014]
[1748827918099,2.42817887,2530.1,2530.0,1.29014]
[1748827918600,3.21827887,2530.1,2530.0,0.5]
[1748827919501,2.42817887,2530.1,2530.0,1.29014]
[1748827920002,21.00717887,2530.1,2530.0,1.29014]
[1748827920702,21.00833994,2530.1,2530.0,1.29014]
[1748827923003,19.71803994,2530.1,2530.0,1.29014]
[1748827923305,19.71803994,2530.1,2530.0,2.54324]
[1748827923695,1.15920238,2530.1,2530.0,2.54324]
[1748827924107,0.00592417,2530.3,2530.2,0.79007]
[1748827924409,1.16533343,2530.3,2530.2,0.79007]
[1748827928105,1.16465448,2530.3,2530.2,0.79007]
[1748827929709,0.00592417,2530.3,2530.2,0.79007]
[1748827930307,0.00592417,2530.3,2530.2,8.18787]
[1748827932903,0.00592417,2530.3,2530.2,8.68787]
[1748827933903,0.00592417,2530.3,2530.2,4.49787]
[1748827940009,1.425,2530.8,2530.2,4.49787]
[1748827940010,0.6351,2530.8,2530.7,0.78992]
[1748827940207,1.79357239,2530.8,2530.7,0.78992]
[1748827940606,3.88166239,2530.8,2530.7,0.78992]
[1748827940814,2.72319,2530.8,2530.7,0.78992]
[1748827941114,2.31706472,2530.8,2530.7,0.78992]
[1748827941710,3.69736472,2530.8,2530.7,0.78992]
[1748827942707,1.15851261,2530.8,2530.7,0.78992]
[1748827944610,0.00592417,2531.0,2530.9,0.78985]
[1748827944806,0.00592417,2531.0,2530.9,3.99765]
[1748827945207,0.00592417,2531.0,2530.9,5.37545]
[1748827946016,0.00592417,2531.0,2530.9,2.16765]
[1748827947820,0.00592417,2531.0,2530.9,2.66765]
[1748827948221,0.6794,2531.3,2531.2,0.78976]
[1748827949219,0.7898,2531.1,2530.9,0.5]
[1748827949414,0.78982,2531.0,2530.9,1.28984]
[1748827949616,1.9748,2531.0,2530.9,1.28984]
[1748827951417,2.76462,2531.0,2530.9,1.28984]
[1748827951619,1.9748,2531.0,2530.9,1.28984]
[1748827952425,1.9748,2531.0,2530.9,0.5]
[1748827952426,5.1826,2531.0,2530.9,0.5]
[1748827952718,5.1826,2531.0,2530.1,3.2078]
[1748827952719,0.79004,2530.3,2530.1,3.2078]
[1748827952926,19.30504,2530.3,2529.8,7.3168]
[1748827953318,19.30504,2530.3,2530.0,0.79011]
[1748827953523,1.45812,2530.4,2529.8,7.3168]
[1748827953718,20.63374,2530.3,2530.1,0.79009]
[1748827953915,20.63374,2530.3,2530.0,0.79603417]
[1748827954218,5.56230984,2530.8,2530.1,3.2078]
[1748827954419,1.3307,2530.6,2530.1,3.2078]
[1748827954619,2.12067,2530.6,2530.3,4.109]
[1748827954827,2.12067,2530.6,2530.3,4.89902]
[1748827955224,0.78998,2530.5,2530.3,0.79003]
[1748827955528,1.3307,2530.4,2530.3,0.79003]
[1748827955722,1.9992,2530.4,2530.3,0.79003]
[1748827956721,1.45804,2530.7,2530.5,0.78997]
[1748827957023,1.15223333,2530.6,2530.5,0.78997]
[1748827957527,3.23198333,2530.6,2530.4,0.78999]
[1748827957825,1.2898,2530.6,2530.5,0.78998]
[1748827958027,2.44210981,2530.6,2530.5,0.78998]
[1748827958420,1.2898,2530.6,2530.5,0.78998]
[1748827959028,0.6685,2530.7,2530.6,0.78995]
[1748827959219,1.9145,2531.1,2531.0,0.78982]
[1748827959427,3.06712664,2531.1,2531.0,0.78982]
[1748827959932,3.06712664,2531.1,2530.9,0.86054789]
[1748827960127,1.15262664,2531.0,2530.9,0.86054789]
[1748827960335,3.22854664,2531.0,2530.9,0.07069789]
[1748827960724,2.43872664,2531.0,2530.9,0.86054789]
[1748827961434,1.2861,2531.0,2530.9,0.86054789]
[1748827961733,3.22864494,2531.0,2530.9,0.86054789]
[1748827961933,2.43882494,2531.0,2530.9,0.86054789]
[1748827963125,1.2861,2531.0,2530.9,0.86054789]
[1748827963328,3.22912665,2531.0,2530.9,0.07069789]
[1748827963631,3.22912665,2531.0,2530.9,0.86054789]
[1748827964133,2.43930665,2531.0,2530.9,0.86054789]
[1748827964533,3.22912665,2531.0,2530.9,0.07069789]
[1748827964833,3.22912665,2531.0,2530.9,0.86054789]
[1748827965538,2.43930665,2531.0,2530.9,1.36054789]
[1748827966136,3.22912665,2531.0,2530.9,0.57069789]
[1748827966333,0.78998,2530.5,2530.4,3.2078]
[1748827967537,0.78998,2530.5,2530.4,3.99781]
[1748827968024,1.94370394,2530.5,2530.3,0.79003]
[1748827968227,2.0809,2530.5,2530.4,0.5]
[1748827968731,3.23523643,2530.5,2530.4,0.5]
[1748827969433,2.0809,2530.5,2530.4,0.5]
[1748827969633,3.23551481,2530.5,2530.4,0.5]
[1748827970334,0.78989,2530.8,2530.6,0.78992]
[1748827970633,0.78988,2530.9,2530.6,0.78993]
[1748827970937,1.2871,2530.8,2530.7,0.78992]
[1748827971126,0.78983,2531.0,2530.5,1.3734]
[1748827971330,2.07693,2531.0,2530.7,3.2078]
[1748827971631,2.07693,2531.0,2530.8,0.78989]
[1748827971832,1.2871,2531.0,2530.9,0.86054789]
[1748827972230,2.07692,2531.0,2530.9,0.86054789]
[1748827972633,1.2871,2531.0,2530.9,0.86054789]
[1748827973337,2.07692,2531.0,2530.9,0.07069789]
[1748827974236,1.2871,2531.0,2530.9,0.86054789]
[1748827974439,2.07692,2531.0,2530.9,0.07069789]
[1748827977934,20.61292,2531.0,2530.9,0.07069789]
[1748827978133,1.2871,2531.0,2530.9,0.86054789]
[1748827979033,0.6358,2531.3,2530.9,0.07069789]
[1748827979229,0.78979,2531.1,2531.0,1.9743]
[1748827980232,0.78982,2531.0,2530.9,0.07069789]
[1748827980434,1.47912,2531.0,2530.9,0.07069789]
[1748827980633,1.47912,2531.0,2530.9,0.57069789]
[1748827980936,2.83012,2531.0,2530.9,0.57069789]
[1748827981137,0.79001,2530.4,2530.3,0.6313]
[1748827981337,20.50893,2530.6,2529.9,3.2078]
[1748827981536,2.0039,2530.3,2529.9,3.2078]
[1748827981740,2.79396,2530.3,2530.1,0.79009]
[1748827981938,2.0039,2530.3,2530.2,0.79007]
[1748827982339,2.50001488,2530.3,2530.2,0.79007]
[1748827982642,18.538,2530.7,2530.4,0.79]
[1748827982844,1.14904628,2530.6,2530.4,0.79]
[1748827983043,1.14904628,2530.6,2530.5,0.78998]
[1748827983247,1.93889015,2530.6,2530.4,2.1117]
[1748827983435,0.64894015,2530.5,2530.4,2.1117]
[1748827983644,21.37013,2530.7,2530.4,2.1117]
[1748827983645,19.2302,2530.7,2530.6,0.78995]
[1748827983847,19.2302,2530.7,2530.4,1.3217]
[1748827984047,19.2302,2530.7,2530.5,0.78998]
[1748827984250,20.02012,2530.7,2530.5,0.78998]
[1748827984549,1.48112,2530.7,2530.5,0.78998]
[1748827984748,1.48112,2530.7,2530.5,0.78996]
[1748827985153,0.6912,2530.7,2530.4,1.3217]
[1748827985352,1.48112,2530.7,2530.5,0.78996]
[1748827985548,0.6912,2530.7,2530.6,0.78995]
[1748827986049,0.6912,2530.7,2530.4,1.8217]
[1748827986245,0.78998,2530.5,2530.4,0.5]
[1748827986744,0.79004,2530.3,2530.2,0.07069789]
[1748827987353,2.07274,2530.3,2530.2,0.07069789]
[1748827987953,2.27439671,2530.3,2530.2,0.07069789]
[1748827988252,2.27439672,2530.3,2530.2,0.07069789]
[1748827988443,2.07274,2530.3,2530.2,0.07069789]
[1748827988847,2.27440854,2530.3,2530.2,0.07069789]
[1748827989553,2.07274,2530.3,2530.2,0.07069789]
[1748827991252,7.07274,2530.3,2530.2,7.89e-06]
[1748827991453,0.79031,2529.5,2529.3,0.79035]
[1748827991654,0.79035,2529.4,2529.2,3.2078]
[1748827991855,0.79031,2529.5,2529.2,3.2078]
[1748827992056,2.06441,2529.5,2529.3,0.79034]
[1748827992554,18.511,2529.6,2529.4,0.79032]
[1748827992755,19.30126,2529.6,2529.4,0.7903]
[1748827993153,19.30126,2529.6,2529.4,1.422]
[1748827993353,0.79029,2529.5,2529.4,0.6317]
[1748827993950,20.58848,2529.6,2529.4,0.6317]
[1748827994556,20.58848,2529.6,2529.4,1.42201]
[1748827994849,20.58848,2529.6,2529.4,2.003]
[1748827995052,19.7982,2529.6,2529.4,2.003]
[1748827995656,0.79029,2529.5,2529.4,2.003]
[1748827996852,19.7982,2529.6,2529.4,2.003]
[1748827997253,20.58848,2529.6,2529.4,2.79331]
[1748827998654,20.58848,2529.6,2529.5,0.79029]
[1748827998655,1.2872,2529.6,2529.5,0.79029]
[1748827998954,0.79026,2529.6,2529.5,4.5712]
[1748827999155,0.79026,2529.6,2529.4,0.6317]
[1748827999156,0.79029,2529.5,2529.4,0.6317]
[1748828000151,0.79029,2529.5,2529.4,0.70239789]
[1748828000552,0.79029,2529.5,2529.4,1.49271789]
[1748828000747,0.79029,2529.5,2529.4,0.70239789]
[1748828001558,0.79029,2529.5,2529.4,1.49270789]
[1748828001952,2.07068,2529.6,2529.4,1.49270789]
[1748828002354,2.07068,2529.6,2529.4,1.49269789]
[1748828003661,2.07068,2529.6,2529.5,0.79029]
[1748828004063,2.07068,2529.6,2529.4,1.49269789]
[1748828004260,0.00592417,2529.7,2529.4,0.70239789]
[1748828004464,0.00592417,2529.7,2529.6,0.79026]
[1748828004665,0.00592417,2529.7,2529.5,4.5003]
[1748828004964,0.79026,2529.6,2529.5,5.29059]
[1748828005158,0.79026,2529.6,2529.5,2.08279]
[1748828005363,2.07127417,2529.7,2529.5,2.08279]
[1748828005665,0.79026,2529.6,2529.5,2.08279]
[1748828005865,2.07125417,2529.7,2529.6,0.79026]
[1748828006665,0.79026,2529.6,2529.5,2.08278]
[1748828007267,2.07127417,2529.7,2529.5,2.08278]
[1748828007567,0.79026,2529.6,2529.5,2.08278]
[1748828007767,0.79026,2529.6,2529.5,2.58278]
[1748828008268,0.00592417,2529.7,2529.6,0.79026]
[1748828015470,0.00592417,2529.7,2529.6,0.86095789]
[1748828017777,0.79615417,2529.7,2529.6,0.86095789]
[1748828017971,0.79615417,2529.7,2529.6,0.07069789]
[1748828018573,0.79615417,2529.7,2529.6,0.86095789]
[1748828018779,2.11235417,2529.7,2529.6,0.07069789]
[1748828019379,3.25737347,2529.7,2529.6,0.07069789]
[1748828019777,2.11235417,2529.7,2529.6,0.86095789]
[1748828020278,3.25750963,2529.7,2529.6,0.86095789]
[1748828022782,3.25750963,2529.7,2529.6,1.36095789]
[1748828022983,3.2576923,2529.7,2529.6,1.36095789]
[1748828024082,3.2576923,2529.7,2529.6,0.57069789]
[1748828024485,3.2576923,2529.7,2529.6,1.36095789]
[1748828027289,3.25802897,2529.7,2529.6,0.57069789]
[1748828027784,3.25802897,2529.7,2529.6,1.36095789]
[1748828027985,1.15159897,2529.7,2529.6,1.36095789]
[1748828028286,1.94182897,2529.7,2529.6,0.57069789]
[1748828028587,3.21362897,2529.7,2529.6,1.36095789]
[1748828031588,2.06795417,2529.7,2529.6,1.36095789]
[1748828031783,3.21403913,2529.7,2529.6,1.36095789]
[1748828032090,2.42380913,2529.7,2529.6,1.36095789]
[1748828032287,3.21403913,2529.7,2529.6,1.36095789]
[1748828033889,1.15200913,2529.7,2529.6,4.56875789]
[1748828035193,0.00592417,2529.7,2529.6,4.56875789]
[1748828035492,1.15294742,2529.7,2529.6,4.56875789]
[1748828036093,1.15310349,2529.7,2529.6,4.56875789]
[1748828037594,1.15310349,2529.7,2529.6,4.06875789]
[1748828037789,0.00592417,2529.7,2529.6,4.56875789]
[1748828039194,3.03056592,2530.3,2530.1,0.79008]
[1748828039493,3.03056592,2530.3,2529.7,1.97551]
[1748828039494,0.79015,2530.0,2529.9,0.79015]
[1748828039693,1.93749418,2530.0,2529.9,0.79015]
[1748828040584,1.93764166,2530.0,2529.9,0.79015]
[1748828040784,1.14749166,2530.0,2529.7,0.7902]
[1748828041085,0.79021,2529.8,2529.7,0.7902]
[1748828041293,1.93770166,2529.8,2529.7,0.7902]
[1748828041493,3.20370166,2529.8,2529.7,0.7902]
[1748828043291,3.20413527,2529.8,2529.7,0.7902]
[1748828044192,3.20413527,2529.8,2529.6,0.57069789]
[1748828044193,0.79023,2529.7,2529.6,0.57069789]
[1748828044386,3.32211306,2529.7,2529.6,0.57069789]
[1748828044792,3.32211306,2529.7,2529.6,0.5]
[1748828045693,1.14798306,2529.7,2529.6,1.29026]
[1748828045988,23.95916592,2530.3,2529.9,0.79014]
[1748828046192,1.93819462,2530.1,2529.9,0.79014]
[1748828046393,1.14807462,2530.0,2529.9,0.79014]
[1748828046791,1.93820462,2530.0,2529.9,0.79014]
[1748828046989,0.79017,2529.9,2529.8,0.6881]
[1748828047187,0.7902,2529.8,2529.7,0.07069789]
[1748828047388,3.82527462,2529.8,2529.7,0.07069789]
[1748828047789,3.03507462,2529.8,2529.7,0.86092789]
[1748828047989,1.77547462,2529.8,2529.7,0.86092789]
[1748828048289,1.14807462,2529.8,2529.7,0.86092789]
[1748828048488,1.2881,2530.1,2530.0,0.79013]
[1748828048699,2.43774674,2530.1,2530.0,0.79013]
[1748828048997,3.22784674,2530.1,2530.0,0.79013]
[1748828050198,1.14964674,2530.1,2530.0,0.79013]
[1748828050398,0.79014,2530.0,2529.9,2.16135]
[1748828050698,1.14964674,2530.0,2529.9,2.16135]
[1748828051296,1.93978674,2530.0,2529.9,2.16135]
[1748828051696,1.14964674,2530.0,2529.9,2.16135]
[1748828052101,0.79013,2530.1,2530.0,0.79014]
[1748828052301,1.14932037,2530.1,2530.0,0.79014]
[1748828052490,0.00592417,2530.2,2530.1,0.7901]
[1748828052695,0.00592417,2530.2,2530.1,4.8291]
[1748828052897,0.00592417,2530.2,2530.1,46.1291]
[1748828059805,3.8944,2530.9,2530.3,1.97504]
[1748828060008,1.14760082,2530.8,2530.7,0.78992]
[1748828060210,0.78989,2530.8,2530.7,0.78992]
[1748828060609,2.12279,2530.8,2530.7,0.78992]
[1748828065111,0.78995,2530.6,2530.5,40.80592417]
[1748828065314,0.78995,2530.6,2530.5,0.00592417]
[1748828065711,2.10075,2530.6,2530.5,0.00592417]
[1748828066516,2.10075,2530.6,2530.5,0.79590417]
[1748828067113,1.3108,2530.6,2530.5,0.79590417]
[1748828067612,23.57632417,2531.0,2530.8,0.78987]
[1748828067613,0.78987,2530.9,2530.8,0.78987]
[1748828067918,0.7899,2530.8,2530.7,0.7899]
[1748828068216,1.3551,2530.8,2530.7,0.7899]
[1748828069211,1.3551,2530.8,2530.5,3.71372417]
[1748828069514,0.78994,2530.7,2530.6,0.78994]
[1748828070217,0.78995,2530.6,2530.5,3.71372417]
[1748828070414,2.16975,2530.6,2530.5,3.71372417]
[1748828071217,1.3798,2530.6,2530.5,4.50370417]
[1748828071720,2.16975,2530.6,2530.5,4.50370417]
[1748828071917,2.16975,2530.6,2530.5,3.71372417]
[1748828072107,0.6633,2530.9,2530.5,3.71372417]
[1748828072309,1.14616911,2530.8,2530.5,3.71372417]
[1748828072514,0.6633,2530.9,2530.8,0.78989]
[1748828072714,2.59937728,2530.9,2530.8,0.78989]
[1748828072916,0.78989,2530.8,2530.7,0.7899]
[1748828073820,0.6633,2530.9,2530.7,0.78992]
[1748828074020,0.78989,2530.8,2530.7,0.78992]
[1748828074223,0.78989,2530.8,2530.6,2.07633]
[1748828074418,0.78989,2530.8,2530.7,0.78992]
[1748828074619,0.78989,2530.8,2530.6,2.07632]
[1748828074824,1.25852417,2531.0,2530.9,0.78985]
[1748828075123,3.19522147,2531.0,2530.9,0.78985]
[1748828075321,2.04836417,2531.0,2530.9,0.78985]
[1748828075520,0.79576417,2531.0,2530.9,0.78985]
[1748828075825,1.94278088,2531.0,2530.9,0.78985]
[1748828076021,1.94278088,2531.0,2530.8,3.2078]
[1748828076322,0.79576417,2531.0,2530.8,5.25146]
[1748828076524,0.00592417,2531.0,2530.9,0.78985]
[1748828076825,1.15289558,2531.0,2530.9,0.78985]
[1748828077019,1.94271558,2531.0,2530.9,0.78985]
[1748828077323,1.15289558,2531.0,2530.9,0.78985]
[1748828077730,1.15289558,2531.0,2530.9,1.44185]
[1748828078025,0.79574417,2531.0,2530.9,1.44185]
[1748828078424,0.00592417,2531.0,2530.9,1.44185]
[1748828079725,0.00592417,2531.0,2530.9,2.73965]
[1748828082724,0.00592417,2531.0,2530.9,3.23965]
[1748828084630,0.79574417,2531.0,2530.9,3.23965]
[1748828084828,0.00592417,2531.0,2530.9,3.23965]
[1748828089031,1.97413,2531.6,2531.1,0.78978]
[1748828089233,0.78976,2531.2,2531.1,3.99758]
[1748828089421,0.78975,2531.3,2531.2,0.78976]
[1748828089625,1.93812523,2531.3,2531.2,0.78976]
[1748828089929,0.78976,2531.2,2531.1,3.99757]
[1748828090532,0.78975,2531.3,2531.2,0.78975]
[1748828090733,1.93809188,2531.3,2531.2,0.78975]
[1748828090931,0.78976,2531.2,2531.1,3.99757]
[1748828091328,0.78975,2531.3,2531.2,0.78975]
[1748828091529,0.78976,2531.2,2531.1,3.99757]
[1748828092932,0.78976,2531.2,2531.1,3.2078]
[1748828093136,1.3459,2531.4,2531.1,3.2078]
[1748828093337,1.93789554,2531.3,2531.2,0.78976]
[1748828093534,0.78976,2531.2,2531.1,3.99757]
[1748828094339,2.13562,2531.4,2531.3,0.78973]
[1748828094530,3.28366233,2531.4,2531.3,0.78973]
[1748828094732,0.78973,2531.3,2531.2,0.78974]